Cogmind - Beta 14 @@@ ROGUE MODE // 2024.08.20 @ 14:55:42 Player: Compilatron Result: Destroyed by Y-54 Guardian with Flak Gun Performance ------------- Evolutions (0) 0 Regions Visited (3) 600 Robots Destroyed (16) 80 Value Destroyed (561) 561 Prototype IDs (0) 0 Alien Tech Used (0) 0 Bonus (0) 0 TOTAL SCORE: 1241 Bonus ------- None Cogmind --------- Core Integrity 0/250 Matter 255/300 Energy 200/200 System Corruption 2% Temperature Hot (264) Movement Core (900) Ox17 Location -7/Recycling Parts ------- > --- POWER (1) -------- Subdweller Power Source > --- PROPULSION (2) --- Light Treads > --- UTILITY (2) ------ High-capacity Storage Unit > --- WEAPON (2) ------- Gatling Laser Flak Gun > --- INVENTORY (20) --- Light Treads Light Treads Subdweller Monowheel Medium Storage Unit High-capacity Matter Pod (174) High-capacity Matter Pod (0) Transmission Jammer Hacking Suite Battle Rifle Peak State ------------ > --- POWER ------------ Subdweller Power Source > --- PROPULSION ------- Light Treads Subdweller Monowheel > --- UTILITY ---------- Medium Storage Unit Hardened Medium Armor Plating > --- WEAPON ----------- Gatling Laser Flak Gun > --- INVENTORY -------- Light Treads Light Treads Subdweller Monowheel High-capacity Matter Pod High-capacity Matter Pod Scrap Shield Battle Rifle Scrap Shield Fragment Scrap Shield Fragment [Rating: 18] Favorites ----------- Power Subdweller Power Source Engine Subdweller Power Source Propulsion Aluminum Leg Treads Light Treads Leg Aluminum Leg Wheel Subdweller Monowheel Utility Medium Storage Unit Device Sensor Array Storage Medium Storage Unit Protection Hardened Medium Armor Plating Weapon Subdweller Machine Gun Energy Gun Gatling Laser Ballistic Gun Subdweller Machine Gun Launcher Subdweller Shrapnel Launcher Build | -11 -10 -10 -7 ------- Run | Yrd Mat Sub Rec Slots Evolved . | . . . . Power . | . . . . Propulsion . | . . . . Utility . | . . . . Weapon . | . . . . Parts Attached 18 | . 3 11 4 Power 2 | . . 2 . Engine 2 | . . 2 . Core . | . . . . Reactor . | . . . . Propulsion 4 | . . 4 . Treads 2 | . . 2 . Leg . | . . . . Wheel 2 | . . 2 . Hover . | . . . . Flight . | . . . . Utility 5 | . 2 1 2 Device 2 | . 1 1 . Storage 2 | . 1 . 1 Processor . | . . . . Hackware . | . . . . Protection 1 | . . . 1 Artifact . | . . . . Weapon 7 | . 1 4 2 Energy Gun 1 | . . . 1 Energy Cannon . | . . . . Ballistic Gun 4 | . 1 2 1 Ballistic Cannon . | . . . . Launcher 2 | . . 2 . Special Weapon . | . . . . Impact Weapon . | . . . . Slashing Weapon . | . . . . Piercing Weapon . | . . . . Special Melee Weapon . | . . . . Unidentified Prototypes . | . . . . Parts Lost 5 | . 2 1 2 Power 1 | . 1 . . Propulsion 1 | . . . 1 Utility 2 | . . 1 1 Weapon 1 | . 1 . . Highest Loss Streak 3 | . 2 3 2 To Critical Strikes . | . . . . Average Slot Usage (%) 94 | . 97 94 88 Engine 13 | . 13 14 14 Treads 7 | . . 12 14 Leg 12 | . 28 2 . Wheel 7 | . . 13 14 Device 8 | . 12 9 . Storage 14 | . 14 14 14 Ballistic Gun 22 | . 27 22 14 Launcher 4 | . . 5 11 Peak Build Rating 18 | 6 8 13 18 Average Rating 10 | 6 7 11 12 On Entrance 7 | 6 6 6 11 Naked Turns . | . . . . Heaviest Build 61 | 13 19 29 61 Greatest Support 20 | 20 20 20 20 Greatest Overweight (x) 3 | . . 1 3 Average Overweight (x) . | . . . 1 Largest Inventory Capacity 20 | 8 10 10 20 Average Capacity 9 | 8 9 10 11 Most Carried 10 | 6 10 10 10 Average Carried 9 | 6 8 9 9 Final Capacity 20 | 8 10 10 20 Final Carried 10 | 6 10 10 9 Class Distribution -------------------- 100% | Mutant Dominant Class ---------------- Mutant | -10/Materials Mutant | -10/Subcaves Mutant | -7/Recycling Resources | -11 -10 -10 -7 ----------- Run | Yrd Mat Sub Rec Matter Collected 923 | 200 78 472 173 Remotely . | . . . . Salvage Created 432 | . 223 100 109 Parts 33 | . 14 12 7 Haulers Intercepted . | . . . . Recyclers Shooed . | . . . . Parts Field Recycled . | . . . . Retrieved Matter . | . . . . Parts Self-Destructed 12 | . . 12 . Prevented . | . . . . Kills | -11 -10 -10 -7 ------- Run | Yrd Mat Sub Rec Combat Hostiles Destroyed 13 | . 5 6 2 Guns 11 | . 5 4 2 AOE 2 | . . 2 . Classes Destroyed 7 | . 3 2 2 Builder 1 | . . . 1 Turret 1 | . . 1 . Watcher 1 | . 1 . . Swarmer 1 | . . 1 . Grunt 3 | . 3 . . Sentry 2 | . . . 2 Subdweller 7 | . 2 5 . Best Kill Streak 3 | . 3 3 2 Combat Bots Only 3 | . 3 3 1 Max Kills in Single Turn 1 | . 1 1 1 Gunslinging . | . . . . Exploded 1 | . . 1 . Melee . | . . . . Uniques/NPCs Destroyed . | . . . . Combat | -11 -10 -10 -7 -------- Run | Yrd Mat Sub Rec Hostile Shots Fired 168 | . 32 85 51 Missed 64 | . 7 36 21 Damage Taken 1469 | . 450 767 252 Core 253 | . 45 142 66 Absorbed by Shields . | . . . . Core Remaining (%) 100 | 100 . . . Volleys Fired 63 | . 22 35 6 Largest 2 | . 2 2 2 Hottest 108 | . 40 70 108 Shots Fired 117 | . 39 67 11 Gun 106 | . 39 57 10 Cannon . | . . . . Launcher 11 | . . 10 1 Special . | . . . . Kinetic 108 | . 39 62 7 Thermal 4 | . . . 4 Explosive 5 | . . 5 . Electromagnetic . | . . . . Robot Hit Streak 16 | . 16 11 9 Robot Miss Streak 7 | . 7 4 3 Penetration Max . | . . . . Secondary Targets . | . . . . Shots Hit Robots 83 | . 26 46 11 Core Hits 40 | . 14 13 13 Critical Kills 1 | . . 1 . Critical Parts Destroyed 1 | . . 1 . Critical Strikes 2 | . . 2 . Destroy 2 | . . 2 . Melee Attacks . | . . . . Impact . | . . . . Slashing . | . . . . Piercing . | . . . . Sneak Attacks . | . . . . Combat Hostiles . | . . . . Follow-up Attacks . | . . . . Damage Inflicted 1901 | . 287 1242 372 Guns 1201 | . 281 676 244 Cannons . | . . . . Explosions 690 | . . 562 128 Melee . | . . . . Ramming 10 | . 6 4 . Kinetic 1415 | . 281 882 252 Thermal 120 | . . . 120 Explosive 356 | . . 356 . Electromagnetic . | . . . . Impact . | . . . . Slashing . | . . . . Piercing . | . . . . Highest Corruption 2 | . 2 2 2 Average Corruption 2 | . 2 2 2 Corruption Purged . | . . . . Corruption Blocked . | . . . . Effects 15 | . 4 6 5 Message Errors 5 | . 2 1 2 Matter Fused 5 | . 1 2 2 Energy Discharges 2 | . . 2 . Parts Fused 1 | . . . 1 Data Loss (major) 1 | . . 1 . Alerts 1 | . 1 . . Overload Shots . | . . . . Overflow Damage . | . . . . Projectiles . | . . . . Explosions . | . . . . Melee . | . . . . Knockbacks . | . . . . Impact . | . . . . Kinetic . | . . . . Secondary . | . . . . Self-Inflicted Damage 184 | . . 140 44 Shots 7 | . . 6 1 Rammed 1 | . . 1 . Targets Rammed 5 | . 4 1 . Kicked 4 | . 4 . . Crushed . | . . . . Highest Temperature 246 | . 12 7 246 Average Temperature 54 | . 7 2 105 Received Heat Transfer 330 | . 96 186 48 Siege Activations . | . . . . Robots Corrupted . | . . . . Combat Hostiles . | . . . . Parts Fried . | . . . . Impact Corruptions . | . . . . Robots Melted . | . . . . Combat Hostiles . | . . . . Parts Melted 1 | . . . 1 Heat Transferred 275 | . . . 275 Parts Sabotaged . | . . . . Parts Stolen . | . . . . Parts Stripped . | . . . . Power Chain Reactions . | . . . . Alert | -11 -10 -10 -7 ------- Run | Yrd Mat Sub Rec Peak Influence 117 | . 117 . 67 Initial 14 | . . . 14 Average 17 | . 14 . 23 Maximum Alert Level . | . . . . Low Security (%) 100 | 100 100 . 100 Level 1 . | . . . . Level 2 . | . . . . Level 3 . | . . . . Level 4 . | . . . . Level 5 . | . . . . High Security . | . . . . Max Security . | . . . . Squads Dispatched 3 | . 3 . . Investigation 2 | . 2 . . Extermination . | . . . . Reinforcement 1 | . 1 . . Assault . | . . . . Garrison . | . . . . Intercept . | . . . . Searches Triggered . | . . . . Construction Impeded . | . . . . Haulers Reinforced . | . . . . Active Scanning Responses . | . . . . Cargo Convoy Interrupts . | . . . . Stealth | -11 -10 -10 -7 --------- Run | Yrd Mat Sub Rec Distress Signals . | . . . . Communications Jammed . | . . . . Distress Signals . | . . . . Times Spotted 28 | . 12 13 3 Peak Tracking Total 5 | . 3 5 2 Tactical Retreats 3 | . . 3 . Traps | -11 -10 -10 -7 ------- Run | Yrd Mat Sub Rec Traps Triggered 3 | . 3 . . Indirectly . | . . . . Trap Hack Attempts . | . . . . Triggered . | . . . . Disarmed . | . . . . Reprogrammed . | . . . . Reused . | . . . . Traps Extracted . | . . . . Installed . | . . . . Triggered . | . . . . Machines | -11 -10 -10 -7 ---------- Run | Yrd Mat Sub Rec Machines Disabled 3 | . . 2 1 Max in Single Turn 1 | . . 1 1 Machines Repaired . | . . . . Machines Dismantled . | . . . . Machines Sabotaged . | . . . . Overloaded Fab Kills . | . . . . Hacking | -11 -10 -10 -7 --------- Run | Yrd Mat Sub Rec Machines Accessed 7 | . 5 . 2 Terminals 7 | . 5 . 2 Fabricators . | . . . . Repair Stations . | . . . . Recycling Units . | . . . . Scanalyzers . | . . . . Garrison Access . | . . . . Total Hacks 13 | . 10 . 3 Successful 5 | . 5 . . Failed 8 | . 5 . 3 Catastrophic 3 | . 3 . . Database Lockouts . | . . . . Manual 12 | . 9 . 3 Terminals 13 | . 10 . 3 Fabricators . | . . . . Repair Stations . | . . . . Recycling Units . | . . . . Scanalyzers . | . . . . Garrison Access . | . . . . Terminal Hacks 2 | . 2 . . Branch Access Points 1 | . 1 . . Recall Investigation 1 | . 1 . . Fabricator Hacks . | . . . . Repair Station Hacks . | . . . . Recycling Unit Hacks . | . . . . Scanalyzer . | . . . . Garrison Access Hacks . | . . . . Unauthorized Hacks 3 | . 3 . . Terminals 3 | . 3 . . Botnet 2 | . 2 . . Operators 1 | . 1 . . Fabricators . | . . . . Repair Stations . | . . . . Recycling Units . | . . . . Scanalyzers . | . . . . Garrison Access . | . . . . Data Cores Recovered . | . . . . Used . | . . . . Hacking Detections 7 | . 5 . 2 Full Trace Events 1 | . 1 . . Feedback Events . | . . . . Feedback Blocked . | . . . . Robot Schematics Acquired . | . . . . Robots Built . | . . . . Authchips . | . . . . Time . | . . . . Total Robot Build Rating . | . . . . Part Schematics Acquired . | . . . . Parts Built . | . . . . Authchips . | . . . . Time . | . . . . Total Part Build Rating . | . . . . Parts Repaired . | . . . . Time . | . . . . Parts Recycled . | . . . . Recycled Matter . | . . . . Retrieved Matter . | . . . . Retrieved Components . | . . . . Parts Scanalyzed . | . . . . Part Schematics Acquired . | . . . . Parts Damaged . | . . . . Bothacking | -11 -10 -10 -7 ------------ Run | Yrd Mat Sub Rec Used RIF Installer . | . . . . Robots Hacked . | . . . . Non-combat . | . . . . Combat . | . . . . Robot Hacks Applied . | . . . . Relay Couplers Released . | . . . . Fabnet Peak Effective % . | . . . . Robots Rewired . | . . . . Allies Hacked . | . . . . Hacks Repelled . | . . . . Allies | -11 -10 -10 -7 -------- Run | Yrd Mat Sub Rec Total Allies . | . . . . Largest Group . | . . . . Highest-Rated Group . | . . . . Highest-Rated Ally . | . . . . Total Orders . | . . . . Ally Attacks . | . . . . Total Damage . | . . . . Kills . | . . . . Allies Corrupted . | . . . . Allies Melted . | . . . . Intel | -11 -10 -10 -7 ------- Run | Yrd Mat Sub Rec Robot Analysis Total . | . . . . Derelict Logs Recovered . | . . . . Drone Launches . | . . . . Drone Recoveries . | . . . . Exploration | -11 -10 -10 -7 ------------- Run | Yrd Mat Sub Rec Turns Passed 1980 | 5 835 666 474 Spaces Moved 1007 | 5 431 381 190 Core . | . . . . Treads 225 | . . 68 157 Legs 448 | 5 431 12 . Wheels 334 | . . 301 33 Hover . | . . . . Flight . | . . . . Fastest Speed 110 | 120 120 110 120 Average Speed 146 | 120 120 141 220 Slowest Speed 240 | 120 120 240 240 Overloaded Moves . | . . . . Propulsion Burnouts . | . . . . Robots Hopped . | . . . . Cave-ins Triggered . | . . . . Exploration Rate (%) 27 | 3 59 14 35 Regions Visited 3 Branch Regions 2 Pre-discovered Areas . | . . . . Known Exits Taken . | . . . . Unknown Exits Taken 3 | 1 1 1 . Scrap Searched 5 | . . 5 . Spaces Dug . | . . . . Terrain Destroyed 73 | . . 58 15 Melee . | . . . . Projectile . | . . . . AOE 73 | . . 58 15 Terrain Rammed . | . . . . Walls Destroyed . | . . . . Machines Disabled . | . . . . Actions | -11 -10 -10 -7 --------- Run | Yrd Mat Sub Rec Total 1398 | 4 714 446 234 Wait 271 | . 244 1 26 Move 1004 | 4 430 380 190 Hop . | . . . . Pick Up 18 | . 7 8 3 Fast Attach 4 | . 2 1 1 Attach 2 | . . 2 . Detach . | . . . . Swap 12 | . 1 8 3 Drop 17 | . 4 10 3 Fire 63 | . 22 35 6 Melee . | . . . . Ram . | . . . . Kick 4 | . 4 . . Crush 1 | . . 1 . Escape Stasis . | . . . . Rewire 2 | . . . 2 Trap . | . . . . Miscellaneous . | . . . . Route ------- -11/Scrapyard -10/Materials (discovered 4 exits: [*Mat x2] / *Min / [*Sub]) -10/Subcaves (discovered 2 exits: [*Mat] / *Rec) -7/Recycling History --------- Turn | Location | Event 1 | -11/Scrapyard | Discovered new exit (range 2) 6 | -11/Scrapyard | Entered Materials 300 | -10/Materials | Build established: Mutant 352 | -10/Materials | Discovered new exit (range 10) 398 | -10/Materials | Discovered new exit (range 14) 443 | -10/Materials | Identified exit to Mines 556 | -10/Materials | Discovered new exit (range 16) 806 | -10/Materials | Derelicts attacked the area 809 | -10/Materials | Discovered new exit (range 4) 841 | -10/Materials | Entered Subcaves 845 | -10/Subcaves | Ambushed by Subdwellers from Twisted Machinery 883 | -10/Subcaves | Lost 3 parts (1p1u1w) 885 | -10/Subcaves | Shifting Twisted Machinery released Battle Rifle 885 | -10/Subcaves | Shifting Twisted Machinery released Sub. Machine Gun 938 | -10/Subcaves | Core integrity fell below 50% 1169 | -10/Subcaves | Discovered new exit (range 13) 1176 | -10/Subcaves | Discovered new exit (range 14) 1507 | -10/Subcaves | Entered Recycling 1807 | -7/Recycling | Core integrity fell below 20% 1981 | -7/Recycling | Destroyed by Y-54 Guardian with Flak Gun Last Messages --------------- into recycling unit. 01852_ U-05 Engineer lays Concrete. 01865_ Acquired 67 matter. 01875_ Acquired Hrd. Medium Armor Plating. 01890_ Acquired Gatling Laser. 01892_ Dropped Scrap Shield Fragment. 01893_ Dropped Scrap Shield. 01902_ R-06 Scavenger collects Sub. Shrapnel Launcher. 01913_ System corrupted: Matter fused (-6). 01918_ Acquired 53 matter. 01920_ Acquired Hacking Suite. 01931_ Acquired Hcp. Storage Unit. 01936_ Acquired Transmission Jammer. 01944_ Y-54 Guardian springs to life. 01976_ Gatling Laser melted. 01976_ Y-54 Guardian destroyed. 01979_ R-06 Scavenger collects Imp. Heat Sink. 01981_ Sub. Monowheel destroyed. 01981_ Hrd. Medium Armor Plating destroyed. Map ----- +----------------------------------------------------+ | ???????????????????# #??????# #?? | | ???????????????????# #??????# #?? | | ????????????????#### #??????# """ """ """ """ #?? | | ????????????????# #??????# """ """ """ """ #?? | | ????????????????# ###????# """ """ """ """ #?? | | ????????????????# T#????# """ """ """ """ #?? | | ????????????????# ""###### """ """ """ """ #?? | | ????????????????# ###"# # #?? | | ????????????????# ### #############+#########?? | | ???????########## #?????? | | ???????# # #?????? | | ???????# % ! # % #?????? | | ???????# # ##### ########+###+####### | | ???????# ! / ##### " #?# # | | ???????# ! # #???#######?# # | | ???????# # #???????????# # | | ???????# % & ! # #???????????# """"" # | | ???????# ]! # ###########?# """"""""" # | | ???????# & # # ! #?# """ """ # | | ???????########## # ! #?# # | | ????????????????# # #?################## | | ????????????????# # ! #??????????????????? | | ????????????????# # ! #??????????????????? | | ????????????????# + #??????????????????? | | ????????????????# # r r #??????????????????? | | ????????????????# # @%= #??????????????????? | | ????????????????# ######Y####??????????????????? | | ????????????????# #????#!#?????????????????????? | | ????????????????# #????# #?????????????????????? | | ???????????????? ????# #?????????????????????? | | ??????????????? ????# #?????????????????????? | | ?????????????? T ???? ?????????????????????? | | ?????????????? ???? ?????????????????????? | | ?????????????### ???? ?????????????????????? | | ???????????????###+##????# ?????????????????????? | | ?????????????????????????# ?????????????????????? | | ?????????????????????????? ?????????????????????? | | ?????????????????????????? ????????????????????? | | ?????????????????????????? ????????????????????? | | ?????????????????????????? ????????????????????? | | ?????????????????????????? ????????????????????? | | ??????????????????????????## ????????????????????? | | ????????????????????????????#????????????????????? | | ?????????????????????????????????????????????????? | | ?????????????????????????????????????????????????? | | ?????????????????????????????????????????????????? | | ?????????????????????????????????????????????????? | | ?????????????????????????????????????????????????? | | ?????????????????????????????????????????????????? | | ?????????????????????????????????????????????????? | +----------------------------------------------------+ Best States ------------- Heat Dissipation 25 Energy Generation 15 Energy Capacity 250 Matter Stores 300 Matter Capacity 300 Sight Range 21 Robot Scan Range 14 Terrain Scan Density 10 Armor Coverage 225 Evasion (%) 55 Recoil Reduction 1 Item Schematics ----------------- None Robot Schematics ------------------ None Fabricated ------------ Nothing Alien Tech Used ----------------- None Achievements -------------- None Challenges ------------ None Game ------ Seed ChargeTargetingThruster Manual? 0 Play Time 00:14:50 Cumulative 51.3 hours Start 2024.08.20 @ 14:43:10 End 2024.08.20 @ 14:55:42 Sessions 1 Manual Loads 0 Difficulty Rogue Special Mode None Game No. 72 Rogue 50 Adventurer 20 Explorer 2 Win Type - Total 0 Types 0/0/0/0/0/0/0/0/0 Lore% 38 Gallery% 37 Achievement% 37 Wizard Run 0 Options --------- Layout 1 ASCII 0 Keyboard 0 Movement Numpad Keybinds 0 Fullscreen 2 Font 24/Smallcaps Map View 50x35 Zoom Use 0% Tactical HUD 1 Map Filters NONE Filters NONE Steam 1 RUN: c5137269-4c49-4180-a4af-527ec82b32e0